Cogmind - Beta 11.1 @@@ ROGUE MODE // 2022.06.06 @ 13:52:16 Player: Demise Result: Destroyed by G-47 Trooper with Particle Gun Performance ------------- Evolutions (0) 0 Regions Visited (2) 400 Robots Destroyed (47) 235 Value Destroyed (857) 857 Prototype IDs (2) 40 Alien Tech Used (0) 0 Bonus (8) 8 TOTAL SCORE: 1540 Bonus ------- High Alert Combat Kills 8 Cogmind --------- Core Integrity 0/250 Matter 250/300 Energy 125/125 System Corruption 0% Temperature Cool (9) Movement Rolling (95) Ox1 Location -10/Mines Parts ------- > --- POWER (1) -------- Light Ion Engine > --- PROPULSION (2) --- Wheel Wheel > --- UTILITY (2) ------ Large Storage Unit Core Shielding > --- WEAPON (2) ------- Assault Rifle Assault Rifle > --- INVENTORY (15) --- Structural Scanner Signal Interpreter Improved Terrain Scanner Seismic Detector Core Shielding Core Shielding Utility Shielding Light Armor Plating Hacking Suite Light Assault Rifle Light Assault Rifle Grenade Launcher Grenade Launcher Datajack Peak State ------------ > --- POWER ------------ Light Ion Engine > --- PROPULSION ------- Compact Wheel Compact Wheel > --- UTILITY ---------- Small Storage Unit Seismic Detector > --- WEAPON ----------- Light Assault Rifle Light Assault Rifle > --- INVENTORY -------- Wheel Wheel Wheel Wheel Compact Wheel Compact Wheel Improved Terrain Scanner Assault Rifle [Rating: 8] Favorites ----------- Power Light Ion Engine Engine Light Ion Engine Propulsion Wheel Leg Aluminum Leg Wheel Wheel Utility Core Shielding Device Seismic Detector Storage Large Storage Unit Protection Core Shielding Weapon Assault Rifle Ballistic Gun Assault Rifle Launcher Grenade Launcher Special Melee Weapon Datajack Build | -11 -10 -10 ------- Run | Scr Mat Min Slots Evolved . | . . . Power . | . . . Propulsion . | . . . Utility . | . . . Weapon . | . . . Parts Attached 51 | 8 42 1 Power 5 | 1 4 . Engine 5 | 1 4 . Core . | . . . Reactor . | . . . Propulsion 17 | 2 15 . Treads . | . . . Leg 2 | . 2 . Wheel 15 | 2 13 . Hover . | . . . Flight . | . . . Utility 15 | 3 11 1 Device 4 | 2 2 . Storage 6 | 1 5 . Processor . | . . . Hackware . | . . . Protection 5 | . 4 1 Artifact . | . . . Weapon 14 | 2 12 . Energy Gun . | . . . Energy Cannon . | . . . Ballistic Gun 11 | 2 9 . Ballistic Cannon . | . . . Launcher 1 | . 1 . Special Weapon . | . . . Impact Weapon . | . . . Slashing Weapon . | . . . Piercing Weapon . | . . . Special Melee Weapon 2 | . 2 . Unidentified Prototypes . | . . . Parts Lost 6 | . 6 . Power 3 | . 3 . Propulsion 3 | . 3 . Utility . | . . . Weapon . | . . . Highest Loss Streak 2 | . 2 . To Critical Strikes . | . . . Average Slot Usage (%) 98 | . 98 100 Engine 13 | . 13 14 Wheel 26 | . 26 28 Device 2 | . 2 . Storage 14 | . 14 26 Protection 10 | . 11 1 Ballistic Gun 25 | . 25 28 Special Melee Weapon 1 | . 1 . Naked Turns . | . . . Heaviest Build 47 | 11 47 47 Greatest Support 32 | 32 32 20 Greatest Overweight (x) 9 | . 9 2 Average Overweight (x) . | . . 2 Largest Inventory Capacity 15 | 8 15 15 Average Capacity 12 | 7 12 15 Most Carried 15 | 8 15 15 Average Carried 11 | 4 12 14 Final Capacity 15 | 8 15 15 Final Carried 15 | 8 15 14 Class Distribution -------------------- 77% | Mutant 22% | Scavenger-Mutant Dominant Class ---------------- Mutant | -10/Materials Mutant | -10/Mines Resources | -11 -10 -10 ----------- Run | Scr Mat Min Matter Collected 1195 | 340 855 . Remotely . | . . . Salvage Created 1529 | 245 1249 35 Parts 105 | 21 81 3 Haulers Intercepted 2 | . 2 . Recyclers Shooed . | . . . Parts Field Recycled . | . . . Retrieved Matter . | . . . Parts Self-Destructed . | . . . Prevented . | . . . Kills | -11 -10 -10 ------- Run | Scr Mat Min Combat Hostiles Destroyed 25 | . 24 1 Guns 22 | . 21 1 AOE 3 | . 3 . Classes Destroyed 9 | 3 6 . Worker 6 | 2 4 . Builder 1 | . 1 . Tunneler 5 | 5 . . Hauler 2 | . 2 . Recycler 4 | 1 3 . Operator 1 | . 1 . Watcher 3 | . 3 . Swarmer 6 | . 6 . Grunt 19 | . 18 1 Best Kill Streak 7 | 5 7 1 Combat Bots Only 5 | . 5 1 Max Kills in Single Turn 3 | 1 3 1 Gunslinging . | . . . Exploded 3 | . 3 . Melee . | . . . Uniques/NPCs Destroyed . | . . . Combat | -11 -10 -10 -------- Run | Scr Mat Min Damage Taken 1024 | . 980 44 Core 253 | . 230 23 Absorbed by Shields . | . . . Redirected to Shielding 54 | . 50 4 Regen/Repaired (Parts) 33 | . 33 . Core Remaining (%) 100 | 100 . . Volleys Fired 145 | 30 112 3 Largest 2 | 2 2 2 Hottest 40 | 40 40 40 Shots Fired 289 | 60 223 6 Gun 288 | 60 222 6 Cannon . | . . . Launcher 1 | . 1 . Special . | . . . Kinetic 288 | 60 222 6 Thermal . | . . . Explosive 1 | . 1 . Electromagnetic . | . . . Robot Hit Streak 22 | 6 22 5 Robot Miss Streak 3 | 2 3 1 Penetration Max . | . . . Secondary Targets 1 | . 1 . Max Gunslinging Chain 1 | . 1 . Shots Hit Robots 198 | 41 152 5 Core Hits 80 | 16 62 2 Critical Kills 2 | . 2 . Critical Parts Destroyed 2 | 1 1 . Critical Strikes 4 | 1 3 . Destroy 4 | 1 3 . Melee Attacks . | . . . Impact . | . . . Slashing . | . . . Piercing . | . . . Sneak Attacks . | . . . Combat Hostiles . | . . . Follow-up Attacks . | . . . Damage Inflicted 2238 | 319 1845 74 Guns 2112 | 319 1719 74 Cannons . | . . . Explosions 126 | . 126 . Melee . | . . . Ramming . | . . . Kinetic 2112 | 319 1719 74 Thermal . | . . . Explosive 126 | . 126 . Electromagnetic . | . . . Impact . | . . . Slashing . | . . . Piercing . | . . . Highest Corruption . | . . . Average Corruption . | . . . Corruption Purged . | . . . Corruption Blocked . | . . . Overload Shots . | . . . Overflow Damage 17 | . 17 . Projectiles . | . . . Explosions 17 | . 17 . Melee . | . . . Knockbacks . | . . . Impact . | . . . Kinetic . | . . . Secondary . | . . . Self-Inflicted Damage . | . . . Shots . | . . . Rammed . | . . . Targets Rammed . | . . . Kicked . | . . . Crushed . | . . . Highest Temperature 14 | . 14 2 Average Temperature 6 | . 6 2 Received Heat Transfer 444 | . 417 27 Siege Activations . | . . . Robots Corrupted . | . . . Combat Hostiles . | . . . Parts Fried . | . . . Impact Corruptions . | . . . Robots Melted . | . . . Combat Hostiles . | . . . Parts Melted . | . . . Heat Transferred . | . . . Parts Sabotaged . | . . . Parts Stolen . | . . . Parts Stripped . | . . . Power Chain Reactions . | . . . Missiles Intercepted . | . . . Alert | -11 -10 -10 ------- Run | Scr Mat Min Peak Influence 444 | 40 444 170 Initial 150 | . 26 150 Average 260 | 23 295 152 Maximum Alert Level 2 | . 2 . Low Security (%) 35 | 100 24 100 Level 1 51 | . 59 . Level 2 13 | . 15 . Level 3 . | . . . Level 4 . | . . . Level 5 . | . . . High Security . | . . . Max Security . | . . . Squads Dispatched 6 | . 6 . Investigation 5 | . 5 . Extermination . | . . . Reinforcement 1 | . 1 . Assault . | . . . Garrison . | . . . Intercept . | . . . Searches Triggered . | . . . Construction Impeded . | . . . Haulers Reinforced . | . . . Active Scanning Responses . | . . . Cargo Convoy Interrupts . | . . . Stealth | -11 -10 -10 --------- Run | Scr Mat Min Distress Signals . | . . . Communications Jammed . | . . . Distress Signals . | . . . Times Spotted 34 | . 32 2 Peak Tracking Total 5 | . 5 2 Tactical Retreats 2 | . 2 . Traps | -11 -10 -10 ------- Run | Scr Mat Min Traps Triggered 5 | . 5 . Indirectly . | . . . Trap Hack Attempts 94 | . 94 . Triggered . | . . . Disarmed . | . . . Reprogrammed 6 | . 6 . Reused 1 | . 1 . Traps Extracted . | . . . Installed . | . . . Triggered 1 | . 1 . Machines | -11 -10 -10 ---------- Run | Scr Mat Min Machines Disabled . | . . . Max in Single Turn . | . . . Machines Sabotaged . | . . . Garrisons Compromised . | . . . Overloaded Fab Kills . | . . . Hacking | -11 -10 -10 --------- Run | Scr Mat Min Machines Accessed 8 | . 8 . Terminals 5 | . 5 . Fabricators . | . . . Repair Stations 1 | . 1 . Recycling Units 2 | . 2 . Scanalyzers . | . . . Garrison Access . | . . . Total Hacks 35 | . 35 . Successful 23 | . 23 . Failed 12 | . 12 . Catastrophic 2 | . 2 . Database Lockouts . | . . . Manual 24 | . 24 . Terminals 27 | . 27 . Fabricators . | . . . Repair Stations 3 | . 3 . Recycling Units 5 | . 5 . Scanalyzers . | . . . Garrison Access . | . . . Terminal Hacks 12 | . 12 . Robot Analysis 8 | . 8 . Prototype ID Bank 1 | . 1 . Level Access Points 1 | . 1 . Branch Access Points 1 | . 1 . Terminal Index 1 | . 1 . Fabricator Hacks . | . . . Repair Station Hacks 2 | . 2 . Scan Component 1 | . 1 . Repair 1 | . 1 . Recycling Unit Hacks 2 | . 2 . Retrieve Components 2 | . 2 . Scanalyzer . | . . . Garrison Access Hacks . | . . . Unauthorized Hacks 7 | . 7 . Terminals 5 | . 5 . Botnet 4 | . 4 . Operators 1 | . 1 . Fabricators . | . . . Repair Stations . | . . . Recycling Units 2 | . 2 . Tunnel 2 | . 2 . Scanalyzers . | . . . Garrison Access . | . . . Data Cores Recovered . | . . . Used . | . . . Hacking Detections 8 | . 8 . Full Trace Events 4 | . 4 . Feedback Events . | . . . Feedback Blocked . | . . . Robot Schematics Acquired . | . . . Robots Built . | . . . Authchips . | . . . Time . | . . . Total Robot Build Rating . | . . . Part Schematics Acquired . | . . . Parts Built . | . . . Authchips . | . . . Time . | . . . Total Part Build Rating . | . . . Parts Repaired 1 | . 1 . Time 26 | . 26 . Parts Recycled . | . . . Recycled Matter . | . . . Retrieved Matter . | . . . Retrieved Components 17 | . 17 . Parts Scanalyzed . | . . . Part Schematics Acquired . | . . . Parts Damaged . | . . . Bothacking | -11 -10 -10 ------------ Run | Scr Mat Min Used RIF Installer . | . . . Robots Hacked . | . . . Non-combat . | . . . Combat . | . . . Robot Hacks Applied . | . . . Relay Couplers Released . | . . . Fabnet Peak Effective % . | . . . Robots Rewired . | . . . Allies Hacked . | . . . Hacks Repelled . | . . . Allies | -11 -10 -10 -------- Run | Scr Mat Min Total Allies . | . . . Largest Group . | . . . Highest-Rated Group . | . . . Highest-Rated Ally . | . . . Total Orders . | . . . Ally Attacks . | . . . Total Damage . | . . . Kills . | . . . Allies Corrupted . | . . . Allies Melted . | . . . Intel | -11 -10 -10 ------- Run | Scr Mat Min Robot Analysis Total 8 | . 8 . Derelict Logs Recovered . | . . . Drone Launches . | . . . Drone Recoveries . | . . . Exploration | -11 -10 -10 ------------- Run | Scr Mat Min Turns Passed 1764 | 182 1502 80 Spaces Moved 1082 | 82 937 63 Core 2 | 1 1 . Treads . | . . . Legs 16 | . 16 . Wheels 1064 | 81 920 63 Hover . | . . . Flight . | . . . Fastest Speed 50 | 50 80 110 Average Speed 96 | 99 95 110 Slowest Speed 500 | 100 500 110 Overloaded Moves . | . . . Propulsion Burnouts . | . . . Robots Hopped . | . . . Cave-ins Triggered . | . . . Exploration Rate (%) 40 | 3 98 19 Regions Visited 2 Branch Regions 1 Pre-discovered Areas 2 | . 2 . Known Exits Taken 1 | . 1 . Unknown Exits Taken 1 | 1 . . Scrap Searched . | . . . Spaces Dug . | . . . Terrain Destroyed 9 | . 9 . Melee . | . . . Projectile . | . . . AOE 9 | . 9 . Terrain Rammed . | . . . Walls Destroyed . | . . . Machines Disabled . | . . . Actions | -11 -10 -10 --------- Run | Scr Mat Min Total 1545 | 136 1339 70 Wait 121 | . 119 2 Move 1080 | 81 936 63 Hop . | . . . Pick Up 25 | 12 13 . Fast Attach 22 | 7 15 . Attach 4 | . 3 1 Detach 3 | . 3 . Swap 25 | 1 24 . Drop 26 | 5 20 1 Fire 145 | 30 112 3 Melee . | . . . Ram . | . . . Kick . | . . . Crush . | . . . Escape Stasis . | . . . Rewire . | . . . Trap 94 | . 94 . Miscellaneous . | . . . Route ------- -11/Scrapyard -10/Materials (discovered 5 exits: *Mat x3 / *Min x2) -10/Mines (discovered 1 exit: [*Exi]) History --------- Turn | Location | Event 22 | -11/Scrapyard | Discovered new exit (range 16) 183 | -11/Scrapyard | Entered Materials 301 | -10/Materials | Build established: Mutant 442 | -10/Materials | Discovered new exit (range 8) 476 | -10/Materials | Repaired Lgt. Assault Rifle 708 | -10/Materials | Discovered new exit (range 9) 744 | -10/Materials | Discovered new exit (range 8) 789 | -10/Materials | Identified exit to Mines 818 | -10/Materials | Core integrity fell below 50% 1067 | -10/Materials | Core integrity fell below 20% 1536 | -10/Materials | Identified exit to Materials 1685 | -10/Materials | Entered Mines 1727 | -10/Mines | Deemed a non-threat by the Exiles lab entrance 1727 | -10/Mines | Discovered new exit (range 5) 1765 | -10/Mines | Destroyed by G-47 Trooper with Particle Gun Last Messages --------------- 01577_ Triggered Blade Trap. 01577_ Massive razor-sharp blades shoot up from within the floor. 01577_ Wheel severed. 01577_ Assault Rifle severed. 01578_ Acquired Lgt. Ion Engine. 01581_ Acquired Wheel. 01584_ Acquired Assault Rifle. 01610_ Acquired 1 matter. 01611_ Acquired 45 matter. 01632_ Acquired 21 matter. 01634_ Dropped Wheel. 01658_ Extracted 19 matter. LOCATION=MINES GOAL=ESCAPE Something is scanning the area. 01686_ K-01 Serf collects debris. 01727_ "No threat detected, you may enter." 01727_ EXIT=FOUND 01755_ Dropped Lrg. Storage Unit. 01757_ G-34 Mercenary destroyed. Map ----- +----------------------------------------------------+ | ????????????????????????????????? | | ????????????????????????????????? | | ????????????????????????????????? | | ????????????????????????????????? | | ????????????????????????????????? | | ????????????????????????????????? | | ????????????????????????????????? | | ????????????????????????????????? | | ????????????????????????????????? | | ????????????????????????????????? | | ??????????????????####??????????? | | ????????????????## ####???????? | | ??????????????### #???????? | | ???????????#### #?? #???????? | | ???????##### #### #???????? | | ???????# #?# ????????? | | ???????# ## #?# ?????????? | | ???????# ## ### ##????????? | | ???????# ### ##???????? | | ???????# #?## ### #???????? | | ???????# #??## ##?# ##??????? | | ???????# #???# ##?## ##?????? | | ???????# #???# #??# ##????? | | ???????# #???# #??# ###### | | ???????# #???# ##### | | ???????#@#???# ##### | | ???????#g#???### #??### ##### | | ?????? =!= ????# ##????## ##?## | | ?????# """ ?? #??????## ##?? | | ?????# """ #? ##???????# #?? | | ?????# """ #< ????????# #?? | | ?????T ###????????# ##?? | | ????## #??????????# #??? | | ?????#########??????????## ##??? | | ?????????????????????????####???? | | ????????????????????????????????? | | ????????????????????????????????? | | ????????????????????????????????? | | ????????????????????????????????? | | | | | | | | | | | | | | | | | | | | | | | +----------------------------------------------------+ Best States ------------- Heat Dissipation 25 Energy Generation 10 Energy Capacity 250 Matter Stores 300 Matter Capacity 300 Sight Range 16 Terrain Scan Density 10 Core Shielding 20 Evasion (%) 44 Item Schematics ----------------- None Robot Schematics ------------------ None Fabricated ------------ Nothing Alien Tech Used ----------------- None Achievements -------------- None Challenges ------------ None Game ------ Seed VariableChainGravjet Manual? 0 Play Time 00:16:47 Cumulative 571.1 hours Start 2022.06.06 @ 13:30:22 End 2022.06.06 @ 13:52:16 Sessions 1 Manual Loads 0 Difficulty Rogue Special Mode None Game No. 460 Rogue 460 Adventurer 0 Explorer 0 Win Type - Total 5 Types 4/0/0/1/0/0/0/0/0 Lore% 71 Gallery% 84 Achievement% 66 Wizard Run 0 Options --------- ASCII 0 Keyboard 1 Movement Numpad Keybinds 0 Fullscreen 1 Font 12/Terminus Map View 83x54 Tactical HUD 1 Map Filters NONE Filters NONE Steam 1 RUN: baf6023d-6106-4b6b-a1cd-a1c1f159b8d8